fUSD/lending_fUSD_20250208
["ID","MTS","AMOUNT","RATE_DAILY","PERIOD"]
[352250146,1739016667341,-1956.24,0.00010944,2]
[352250147,1739016667351,-889.21,0.00010944,2]
[352250148,1739016667361,-1483.87,0.00010944,2]
[352250149,1739016667371,-1005.33,0.00010944,2]
[352250150,1739016667381,-1523.46,0.00010944,2]
[352250151,1739016667392,-500.0,0.00010944,2]
[352250152,1739016667402,-2972.62,0.00010944,2]
[352250153,1739016667411,-3014.46,0.00010944,2]
[352250154,1739016667422,-1879.88,0.00010944,2]
[352250155,1739016667432,-1805.48,0.00010944,2]
[352250156,1739016667441,-1675.03,0.00010944,2]
[352250157,1739016667451,-1525.04,0.00010944,2]
[352250158,1739016667461,-1481.76,0.00010944,2]
[352250159,1739016667471,-1550.41,0.00010944,2]
[352250160,1739016667481,-500.0,0.00010944,2]
[352250161,1739016667491,-1170.33,0.00010944,2]
[352250162,1739016667501,-1336.26,0.00010944,2]
[352250163,1739016667511,-6263.57,0.00010944,2]
[352250164,1739016667520,-722.46,0.00010944,2]
[352250165,1739016667530,-1279.94,0.00010944,2]
[352250166,1739016667540,-2548.9,0.00010944,2]
[352250167,1739016667550,-1763.51,0.00010944,2]
[352250168,1739016667561,-3187.35,0.00010944,2]
[352250169,1739016667571,-2428.97,0.00010944,2]
[352250170,1739016667580,-1433.03,0.00010944,2]
[352250171,1739016667590,-2509.09,0.00010944,2]
[352250172,1739016667600,-500.0,0.00010944,2]
[352250173,1739016667610,-1983.83,0.00010944,2]
[352250174,1739016667619,-1130.52,0.00010944,2]
[352250175,1739016667629,-938.92,0.00010944,2]
[352250176,1739016667639,-2847.66,0.00010944,2]
[352250177,1739016667652,-848.72,0.00010944,2]
[352250178,1739016667662,-981.5,0.00010944,2]
[352250179,1739016667672,-4198.29,0.00010944,2]
[352250180,1739016667683,-2236.4,0.00010944,2]
[352250181,1739016667693,-591.38,0.00010944,2]
[352250182,1739016667702,-500.0,0.00010944,2]
[352250183,1739016667712,-2177.48,0.00010944,2]
[352250184,1739016667723,-789.78,0.00010944,2]
[352250185,1739016667732,-2846.29,0.00010944,2]
[352250186,1739016667742,-2497.72,0.00010944,2]
[352250187,1739016667753,-3935.72,0.00010944,2]
[352250188,1739016667763,-1045.52,0.00010944,2]
[352250189,1739016667773,-2921.31,0.00010944,2]
[352250190,1739016667783,-1177.12,0.00010944,2]
[352250191,1739016667793,-685.44,0.00010944,2]
[352250192,1739016667803,-2601.32,0.00010944,2]
[352250193,1739016667812,-2586.35,0.00010944,2]
[352250194,1739016667823,-2525.4,0.00010944,2]
[352250195,1739016667833,-574.27,0.00010944,2]
[352250196,1739016667842,-1201.45,0.00010944,2]
[352250197,1739016667852,-500.0,0.00010944,2]
[352250198,1739016667862,-694.71,0.00010944,2]
[352250199,1739016667872,-758.46,0.00010944,2]
[352250200,1739016667882,-2455.19,0.00010944,2]
[352250201,1739016667891,-2656.07,0.00010944,2]
[352250202,1739016667902,-3064.19,0.00010944,2]
[352250203,1739016667911,-972.81,0.00010944,2]
[352250204,1739016667921,-500.0,0.00010944,2]
[352250205,1739016667931,-500.0,0.00010945,2]
[352250206,1739016667940,-500.0,0.00010945,2]
[352250207,1739016667950,-500.0,0.00010945,2]
[352250208,1739016667960,-500.0,0.00010945,2]
[352250209,1739016667970,-500.0,0.00010945,2]
[352250210,1739016667980,-500.0,0.00010945,2]
[352250211,1739016667990,-500.0,0.00010945,2]
[352250212,1739016668000,-500.0,0.00010945,2]
[352250213,1739016668010,-500.0,0.00010945,2]
[352250214,1739016668022,-591.73,0.00010945,2]
[352250215,1739016668032,-255.88952049,0.00010945,2]
[352250216,1739016668042,-690.29,0.00010945,2]
[352250217,1739016668051,-538.0,0.00010945,2]
[352250218,1739016668061,-500.0,0.00010945,2]
[352250219,1739016668071,-500.0,0.00010945,2]
[352250220,1739016668081,-482.26704015,0.00010945,2]
[352250221,1739016668090,-500.0,0.00010945,2]
[352250222,1739016668101,-774.67,0.00010945,2]
[352250223,1739016668111,-500.0,0.00010945,2]
[352250224,1739016668121,-500.0,0.00010945,2]
[352250225,1739016668130,-500.0,0.00010945,2]
[352250226,1739016668141,-500.0,0.00010945,2]
[352250227,1739016668151,-500.0,0.00010945,2]
[352250228,1739016668160,-500.0,0.00010945,2]
[352250229,1739016668170,-500.0,0.00010945,2]
[352250230,1739016668179,-500.59023109,0.00010945,2]
[352250231,1739016668189,-500.0,0.00010945,2]
[352250232,1739016668200,-1124.54,0.00010945,2]
[352250233,1739016668210,-500.0,0.00010945,2]
[352250234,1739016668220,-500.0,0.00010945,2]
[352250235,1739016668230,-500.0,0.00010945,2]
[352250236,1739016668241,-578.02,0.00010945,2]
[352250237,1739016668251,-500.0,0.00010945,2]
[352250238,1739016668261,-500.0,0.00010945,2]
[352250239,1739016668272,-500.0,0.00010945,2]
[352250240,1739016668281,-500.0,0.00010945,2]
[352250241,1739016668290,-731.4,0.00010945,2]
[352250242,1739016668300,-1169.39,0.00010945,2]
[352250243,1739016668310,-500.0,0.00010945,2]
[352250244,1739016668320,-500.0,0.00010945,2]
[352250245,1739016668330,-582.22,0.00010945,2]
[352250246,1739016668340,-214.90343893,0.00010945,2]
[352250247,1739016668349,-739.49,0.00010945,2]
[352250248,1739016668359,-500.0,0.00010945,2]
[352250249,1739016668369,-500.0,0.00010945,2]
[352250250,1739016668379,-904.49,0.00010945,2]
[352250251,1739016668389,-500.0,0.00010945,2]
[352250252,1739016668399,-500.0,0.00010945,2]
[352250253,1739016668409,-1674.01,0.00010945,2]
[352250254,1739016668419,-825.85,0.00010945,2]
[352250255,1739016668655,-500.0,0.00010945,2]
[352250256,1739016668717,-151.33223238,0.00010945,2]
[352250257,1739016668728,-1609.57,0.00010945,2]
[352250258,1739016668740,-531.32,0.00010945,2]
[352250259,1739016668750,-500.0,0.00010945,2]
[352250260,1739016668760,-500.0,0.00010945,2]
[352250261,1739016668770,-755.09,0.00010945,2]
[352250262,1739016668779,-505.47132783,0.00010945,2]
[352250263,1739016668790,-500.0,0.00010945,2]
[352250264,1739016668801,-755.03,0.00010945,2]
[352250265,1739016668811,-500.0,0.00010945,2]
[352250266,1739016668821,-573.72,0.00010945,2]
[352250267,1739016668831,-1197.56,0.00010945,2]
[352250268,1739016668842,-500.0,0.00010945,2]
[352250269,1739016668851,-500.0,0.00010945,2]
[352250270,1739016668864,-500.0,0.00010945,2]
[352250271,1739016668874,-500.0,0.00010945,2]
[352250272,1739016668884,-771.54,0.00010945,2]
[352250273,1739016668896,-558.54,0.00010945,2]
[352250274,1739016668906,-500.0,0.00010945,2]
[352250275,1739016668916,-500.0,0.00010945,2]
[352250276,1739016668925,-500.0,0.00010945,2]
[352250277,1739016668935,-525.06,0.00010945,2]
[352250278,1739016668945,-500.0,0.00010945,2]
[352250279,1739016668954,-520.49,0.00010945,2]
[352250280,1739016668964,-500.0,0.00010945,2]
[352250281,1739016668973,-509.49,0.00010945,2]
[352250282,1739016668983,-500.0,0.00010945,2]
[352250283,1739016668992,-500.0,0.00010945,2]
[352250284,1739016669002,-1295.12,0.00010945,2]
[352250285,1739016669011,-500.0,0.00010945,2]
[352250286,1739016669021,-558.23,0.00010945,2]
[352250287,1739016669031,-603.54,0.00010945,2]
[352250288,1739016669040,-500.0,0.00010945,2]
[352250289,1739016669050,-500.0,0.00010945,2]
[352250290,1739016669060,-500.0,0.00010945,2]
[352250291,1739016669070,-500.0,0.00010945,2]
[352250292,1739016669082,-500.0,0.00010945,2]
[352250293,1739016669091,-500.0,0.00010945,2]
[352250294,1739016669101,-500.0,0.00010945,2]
[352250295,1739016669111,-500.0,0.00010945,2]
[352250296,1739016669120,-500.0,0.00010945,2]
[352250297,1739016669129,-530.55,0.00010945,2]
[352250298,1739016669139,-1143.44,0.00010945,2]
[352250299,1739016669148,-500.0,0.00010945,2]
[352250300,1739016669157,-500.0,0.00010945,2]
[352250301,1739016669166,-500.0,0.00010945,2]
[352250302,1739016669176,-1033.59,0.00010945,2]
[352250303,1739016669185,-278.58167217,0.00010945,2]
[352250304,1739016669194,-500.0,0.00010945,2]
[352250305,1739016669204,-1257.01,0.00010945,2]
[352250306,1739016669214,-876.98,0.00010945,2]
[352250307,1739016669223,-500.0,0.00010945,2]
[352250308,1739016669232,-501.05,0.00010945,2]
[352250309,1739016669241,-500.0,0.00010945,2]
[352250310,1739016669250,-500.0,0.00010945,2]
[352250311,1739016669260,-530.26,0.00010945,2]
[352250312,1739016669270,-500.0,0.00010945,2]
[352250313,1739016669279,-500.0,0.00010945,2]
[352250314,1739016669288,-500.0,0.00010945,2]
[352250315,1739016669297,-1651.88,0.00010945,2]
[352250316,1739016669307,-500.0,0.00010945,2]
[352250317,1739016669317,-1148.94,0.00010945,2]
[352250318,1739016669326,-500.0,0.00010945,2]
[352250319,1739016669335,-500.0,0.00010945,2]
[352250320,1739016669344,-575.47,0.00010945,2]
[352250321,1739016669354,-500.0,0.00010945,2]
[352250322,1739016669364,-500.0,0.00010945,2]
[352250323,1739016669373,-1025.22,0.00010945,2]
[352250324,1739016669382,-915.76,0.00010945,2]
[352250325,1739016669392,-628.74264404,0.00010945,2]
[352250326,1739016669402,-964.7,0.00010945,2]
[352250327,1739016669411,-500.0,0.00010945,2]
[352250328,1739016669421,-698.32,0.00010945,2]
[352250329,1739016669431,-500.0,0.00010945,2]
[352250330,1739016669441,-1390.15,0.00010945,2]
[352250331,1739016669451,-500.0,0.00010945,2]
[352250332,1739016669461,-1649.62,0.00010945,2]
[352250333,1739016669471,-500.0,0.00010945,2]
[352250334,1739016669481,-500.0,0.00010945,2]
[352250335,1739016669491,-500.0,0.00010945,2]
[352250336,1739016669501,-500.0,0.00010945,2]
[352250337,1739016669511,-500.0,0.00010945,2]
[352250338,1739016669521,-526.92,0.00010945,2]
[352250339,1739016669531,-592.25,0.00010945,2]
[352250340,1739016669540,-1935.59,0.00010945,2]
[352250341,1739016669551,-500.0,0.00010945,2]
[352250342,1739016669560,-910.81,0.00010945,2]
[352250343,1739016669570,-650.96,0.00010945,2]
[352250344,1739016669580,-500.0,0.00010945,2]
[352250345,1739016669590,-534.04,0.00010945,2]
[352250346,1739016669599,-500.0,0.00010945,2]
[352250347,1739016669610,-500.0,0.00010945,2]
[352250348,1739016669619,-1191.28,0.00010945,2]
[352250349,1739016669637,-500.0,0.00010945,2]
[352250350,1739016669658,-544.7,0.00010945,2]
[352250351,1739016669670,-500.0,0.00010945,2]
[352250352,1739016669679,-500.0,0.00010945,2]
[352250353,1739016669688,-500.0,0.00010945,2]
[352250354,1739016669698,-500.0,0.00010945,2]
[352250355,1739016669708,-724.27,0.00010945,2]
[352250356,1739016669718,-663.16,0.00010945,2]
[352250357,1739016669727,-500.0,0.00010945,2]
[352250358,1739016669736,-594.76,0.00010945,2]
[352250359,1739016669746,-500.0,0.00010945,2]
[352250360,1739016669755,-1403.23,0.00010945,2]
[352250361,1739016669764,-500.0,0.00010945,2]
[352250362,1739016669774,-985.78,0.00010945,2]
[352250363,1739016669783,-500.0,0.00010945,2]
[352250364,1739016669795,-938.03,0.00010945,2]
[352250365,1739016669805,-692.14,0.00010945,2]
[352250366,1739016669816,-500.0,0.00010945,2]
[352250367,1739016669826,-500.0,0.00010945,2]
[352250368,1739016669835,-500.0,0.00010945,2]
[352250369,1739016669845,-500.0,0.00010945,2]
[352250370,1739016669854,-609.95,0.00010945,2]
[352250371,1739016669864,-1057.83,0.00010945,2]
[352250372,1739016669874,-500.0,0.00010945,2]
[352250373,1739016669884,-500.0,0.00010945,2]
[352250374,1739016669895,-500.0,0.00010945,2]
[352250375,1739016669905,-500.0,0.00010945,2]
[352250376,1739016669915,-512.17,0.00010945,2]
[352250377,1739016669925,-500.0,0.00010945,2]
[352250378,1739016669934,-2647.65,0.00010945,2]
[352250379,1739016669945,-500.0,0.00010945,2]
[352250380,1739016669955,-2248.66,0.00010945,2]
[352250381,1739016669964,-510.32,0.00010945,2]
[352250382,1739016669973,-732.34,0.00010945,2]
[352250383,1739016669983,-500.0,0.00010945,2]
[352250384,1739016669992,-551.51,0.00010945,2]
[352250385,1739016670002,-1105.66,0.00010945,2]
[352250386,1739016670012,-500.0,0.00010945,2]
[352250387,1739016670022,-500.0,0.00010945,2]
[352250388,1739016670031,-751.01,0.00010945,2]
[352250389,1739016670042,-500.0,0.00010945,2]
[352250390,1739016670053,-544.08,0.00010945,2]
[352250391,1739016670063,-1066.43,0.00010945,2]
[352250392,1739016670072,-1519.45,0.00010945,2]
[352250393,1739016670082,-1474.09,0.00010945,2]
[352250394,1739016670092,-500.0,0.00010945,2]
[352250395,1739016670102,-552.34,0.00010945,2]
[352250396,1739016670112,-1624.49,0.00010945,2]
[352250397,1739016670122,-852.74,0.00010945,2]
[352250398,1739016670132,-1118.02,0.00010945,2]
[352250399,1739016670142,-561.31,0.00010945,2]
[352250400,1739016670152,-500.0,0.00010945,2]
[352250401,1739016670163,-500.0,0.00010945,2]
[352250402,1739016670172,-659.31779734,0.00010945,2]
[352250403,1739016671184,-558.57,0.00010122,2]
[352250404,1739016671194,-85.51472678,0.00010122,2]
[352250405,1739016671230,-414.48527322,0.00010122,2]
[352250406,1739016671240,-193.16147683,0.00010259,2]
[352250407,1739016671252,-365.40852317,0.00010259,2]
[352250408,1739016671262,-500.0,0.00010259,2]
[352250409,1739016671273,-558.57,0.00010396,2]
[352250410,1739016671284,-558.57,0.00010533,2]
[352250411,1739016671301,-558.57,0.0001067,2]
[352250412,1739016671313,-558.57,0.00010807,2]
[352250413,1739016671324,-558.57,0.00010944,2]
[352250414,1739016671334,-625.60220266,0.00010945,2]
[352250415,1739016671343,-165.44648854,0.00010945,2]
[352250416,1739016671356,-427.35937934,0.00010945,2]
[352250417,1739016671368,-619.81,0.00010945,2]
[352250418,1739016671378,-500.0,0.00010945,2]
[352250419,1739016671388,-500.0,0.00010945,2]
[352250420,1739016671398,-928.27,0.00010945,2]
[352250421,1739016671408,-794.9529283,0.00010945,2]
[352250422,1739016671420,-645.0370717,0.00010945,2]
[352250423,1739016671430,-500.0,0.00010945,2]
[352250424,1739016671441,-500.0,0.00010945,2]
[352250425,1739016671451,-500.0,0.00010945,2]
[352250426,1739016671461,-745.06,0.00010945,2]
[352250427,1739016671471,-1043.26756774,0.00010945,2]
[352250428,1739016671483,-174.22243226,0.00010945,2]
[352250429,1739016671493,-765.27,0.00010945,2]
[352250430,1739016671502,-590.8,0.00010945,2]
[352250431,1739016671512,-209.7989746,0.00010945,2]
[352250432,1739016671524,-290.2010254,0.00010945,2]
[352250433,1739016671534,-508.28,0.00010945,2]
[352250434,1739016671544,-625.5189746,0.00010945,2]
[352250435,1739016671556,-19.2310254,0.00010945,2]
[352250436,1739016671565,-257.67958972,0.00010945,2]
[352250437,1739016671577,-376.11990529,0.00010945,2]
[352250438,1739016671588,-673.92050499,0.00010945,2]
[352250439,1739016671598,-764.62717528,0.00010945,2]
[352250440,1739016671675,-155.22282472,0.00010945,2]
[352250441,1739016671687,-661.48,0.00010945,2]
[352250442,1739016671697,-812.62,0.00010945,2]
[352250443,1739016671706,-133.67796419,0.00010945,2]
[352250444,1739016671739,-442.92203581,0.00010945,2]
[352250445,1739016671748,-500.0,0.00010945,2]
[352250446,1739016671758,-500.0,0.00010945,2]
[352250447,1739016671767,-3629.14,0.00010945,2]
[352250448,1739016671776,-848.22,0.00010945,2]
[352250449,1739016671785,-794.68,0.00010945,2]
[352250450,1739016671795,-890.34,0.00010945,2]
[352250451,1739016671804,-1094.34,0.00010945,2]
[352250452,1739016671813,-2156.61,0.00010945,2]
[352250453,1739016671822,-500.0,0.00010945,2]
[352250454,1739016671831,-592.9,0.00010945,2]
[352250455,1739016671841,-1316.74,0.00010945,2]
[352250456,1739016671850,-500.0,0.00010945,2]
[352250457,1739016671860,-576.32633277,0.00010945,2]
[352250458,1739016671871,-2389.26366723,0.00010945,2]
[352250459,1739016671881,-500.0,0.00010945,2]
[352250460,1739016671891,-500.0,0.00010945,2]
[352250461,1739016671900,-1912.29553597,0.00010945,2]
[352250462,1739016671912,-817.46446403,0.00010945,2]
[352250463,1739016671923,-1273.81,0.00010945,2]
[352250464,1739016671932,-500.0,0.00010945,2]
[352250465,1739016671941,-500.0,0.00010945,2]
[352250466,1739016671950,-888.21260959,0.00010945,2]
[352250467,1739016671962,-419.77238971,0.00010945,2]
[352250468,1739016671973,-935.3750007,0.00010945,2]
[352250469,1739016671982,-500.0,0.00010945,2]
[352250470,1739016671991,-221.21020318,0.00010945,2]
[352250471,1739016672002,-1773.58979682,0.00010945,2]
[352250472,1739016672012,-500.0,0.00010945,2]
[352250473,1739016672021,-3608.88,0.00010945,2]
[352250474,1739016672031,-543.85949047,0.00010945,2]
[352250475,1739016672040,-500.0,0.00010945,2]
[352250476,1739016672049,-530.22,0.00010945,2]
[352250477,1739016672059,-500.0,0.00010945,2]
[352250478,1739016672068,-500.0,0.00010945,2]
[352250479,1739016672078,-902.09,0.00010945,2]
[352250480,1739016672088,-87.72439641,0.00010945,2]
[352250484,1739017663374,182.890396,8.178e-05,2]
[352250489,1739017755191,-894.64,8.219e-05,2]
[352250490,1739017755217,-9105.36,8.58e-05,2]
[352250491,1739017756256,-10000.0,8.58e-05,2]
[352250492,1739017757122,-4794.64,8.58e-05,2]
[352250493,1739017757143,-2309.76118321,8.591e-05,2]
[352250494,1739017757166,-776.87,8.591e-05,2]
[352250495,1739017757186,-174.08,8.875e-05,2]
[352250496,1739017757208,-1944.64881679,8.973e-05,2]
[352250497,1739017758024,-10000.0,8.875e-05,2]
[352250498,1739017760137,-2015.27144365,8.875e-05,2]
[352250499,1739017760160,-7984.72855635,8.973e-05,2]
[352250500,1739017770677,-1000.0,8.626e-05,2]
[352250501,1739017770700,-9000.0,8.973e-05,2]
[352250509,1739017831579,-572.29582686,8.973e-05,2]
[352250510,1739017831589,-153.65813777,9.041e-05,2]
[352250511,1739017831602,-284.169996,9.041e-05,2]
[352250512,1739017831614,-62.17186623,9.041e-05,2]
[352250513,1739017831624,-500.0,9.041e-05,2]
[352250514,1739017831634,-1357.99,9.43e-05,2]
[352250515,1739017831643,-1357.99,9.432e-05,2]
[352250516,1739017831653,-1357.99,9.434e-05,2]
[352250517,1739017831663,-300.0,9.436e-05,2]
[352250518,1739017831672,-1357.99,9.437e-05,2]
[352250519,1739017831683,-1357.99,9.439e-05,2]
[352250520,1739017831693,-1357.99,9.442e-05,2]
[352250521,1739017831702,-1357.99,9.444e-05,2]
[352250522,1739017831711,-1357.99,9.447e-05,2]
[352250523,1739017831721,-1357.99,9.449e-05,2]
[352250524,1739017831730,-1357.99,9.452e-05,2]
[352250525,1739017831739,-1357.99,9.454e-05,2]
[352250526,1739017831749,-1357.99,9.457e-05,2]
[352250527,1739017831758,-1357.99,9.459e-05,2]
[352250528,1739017831768,-1357.99,9.462e-05,2]
[352250529,1739017831778,-1357.99,9.464e-05,2]
[352250530,1739017831788,-1357.99,9.467e-05,2]
[352250531,1739017831797,-1357.99,9.469e-05,2]
[352250532,1739017831806,-1357.99,9.472e-05,2]
[352250533,1739017831815,-1357.99,9.474e-05,2]
[352250534,1739017831825,-1357.99,9.477e-05,2]
[352250535,1739017831834,-500.0,9.562e-05,2]
[352250536,1739017831843,-250.0,9.585e-05,2]
[352250537,1739017831852,-150.0,9.585e-05,2]
[352250538,1739017831862,-165.23,9.622e-05,2]
[352250539,1739017831871,-776.87,9.665e-05,2]
[352250540,1739017831881,-231.28821924,9.679e-05,2]
[352250541,1739017831890,-1000.0,9.705e-05,2]
[352250542,1739017831900,-1000.0,9.822e-05,2]
[352250543,1739017831910,-500.0,9.87e-05,2]
[352250545,1739017831919,-150.0,9.888e-05,2]
[352250546,1739017831928,-828.4,9.963e-05,2]
[352250548,1739017831937,-29113.09061054,0.0001,2]
[352250551,1739017831949,-22297.91666403,0.0001,2]
[352250553,1739017831959,-531.65,0.0001012,2]
[352250555,1739017831968,-1744.48,0.0001012,2]
[352250557,1739017831977,-2135.24,0.0001012,2]
[352250559,1739017831986,-1227.52,0.0001012,2]
[352250561,1739017831996,-500.0,0.0001012,2]
[352250563,1739017832007,-2051.64,0.0001012,2]
[352250565,1739017832017,-228.28760522,0.0001012,2]
[352250570,1739017832058,-271.71239478,0.0001012,2]
[352250572,1739017832067,-115.34286244,0.0001012,2]
[352250574,1739017832079,-276.89602579,0.0001012,2]
[352250576,1739017832088,-500.0,0.0001012,2]
[352250578,1739017832098,-500.0,0.0001012,2]
[352250580,1739017832108,-607.29,0.0001012,2]
[352250582,1739017832118,-208.97917199,0.0001012,2]
[352250587,1739017832129,-291.02082801,0.0001012,2]
[352250590,1739017832138,-590.9,0.0001012,2]
[352250593,1739017832147,-491.16584865,0.0001012,2]
[352250598,1739017832173,-8.83415135,0.0001012,2]
[352250601,1739017832182,-500.0,0.0001012,2]
[352250604,1739017832191,-558.55,0.0001012,2]
[352250607,1739017832200,-778.92,0.0001012,2]
[352250610,1739017832211,-2787.81,0.0001012,2]
[352250613,1739017832220,-500.0,0.0001012,2]
[352250616,1739017832229,-500.0,0.00010121,2]
[352250619,1739017832238,-788.35,0.00010121,2]
[352250622,1739017832247,-500.0,0.00010121,2]
[352250625,1739017832256,-500.0,0.00010121,2]
[352250628,1739017832266,-500.0,0.00010121,2]
[352250631,1739017832276,-500.0,0.00010121,2]
[352250634,1739017832285,-1225.73,0.00010121,2]
[352250637,1739017832294,-500.0,0.00010121,2]
[352250639,1739017832303,-589.69,0.00010121,2]
[352250641,1739017832314,-500.0,0.00010121,2]
[352250643,1739017832323,-933.81,0.00010121,2]
[352250645,1739017832332,-500.0,0.00010121,2]
[352250647,1739017832341,-500.0,0.00010121,2]
[352250649,1739017832351,-500.0,0.00010121,2]
[352250652,1739017832360,-500.0,0.00010121,2]
[352250654,1739017832369,-1023.1,0.00010121,2]
[352250656,1739017832379,-155.827945,0.00010121,2]
[352250658,1739017832388,-500.0,0.00010121,2]
[352250660,1739017832397,-500.0,0.00010121,2]
[352250662,1739017832405,-500.0,0.00010121,2]
[352250663,1739017832425,-500.0,0.00010121,2]
[352250665,1739017832434,-500.0,0.00010121,2]
[352250668,1739017832443,-1605.71614,0.00010121,2]
[352250670,1739017832453,-912.66,0.00010121,2]
[352250672,1739017832462,-500.0,0.00010121,2]
[352250674,1739017832471,-500.0,0.00010121,2]
[352250676,1739017832480,-1803.177831,0.00010121,2]
[352250677,1739017832489,-500.0,0.00010121,2]
[352250679,1739017832498,-500.0,0.00010121,2]
[352250681,1739017832508,-156.373598,0.00010121,2]
[352250684,1739017832519,-896.23,0.00010121,2]
[352250685,1739017832527,-500.0,0.00010121,2]
[352250687,1739017832536,-500.0,0.00010121,2]
[352250690,1739017832546,-500.0,0.00010121,2]
[352250692,1739017832556,-500.0,0.00010121,2]
[352250694,1739017832565,-500.0,0.00010121,2]
[352250696,1739017832574,-907.63,0.00010121,2]
[352250698,1739017832583,-500.0,0.00010121,2]
[352250699,1739017832591,-500.0,0.00010121,2]
[352250701,1739017832601,-500.0,0.00010121,2]
[352250703,1739017832610,-500.0,0.00010121,2]
[352250705,1739017832619,-500.0,0.00010121,2]
[352250707,1739017832629,-500.0,0.00010121,2]
[352250710,1739017832638,-648.66,0.00010121,2]
[352250712,1739017832648,-500.0,0.00010121,2]
[352250714,1739017832656,-1183.28,0.00010121,2]
[352250716,1739017832666,-500.0,0.00010121,2]
[352250717,1739017832675,-500.0,0.00010121,2]
[352250719,1739017832686,-1391.88,0.00010121,2]
[352250722,1739017832696,-507.18,0.00010121,2]
[352250724,1739017832705,-500.0,0.00010121,2]
[352250726,1739017832714,-1011.81,0.00010121,2]
[352250728,1739017832723,-504.85032126,0.00010121,2]
[352250730,1739017832732,-500.0,0.00010121,2]
[352250732,1739017832741,-500.0,0.00010121,2]
[352250734,1739017832751,-632.07,0.00010121,2]
[352250736,1739017832760,-500.0,0.00010121,2]
[352250738,1739017832770,-1099.85,0.00010121,2]
[352250763,1739017832779,-500.0,0.00010121,2]
[352250770,1739017833051,-500.0,0.00010121,2]
[352250772,1739017833061,-808.17,0.00010121,2]
[352250774,1739017833071,-500.0,0.00010121,2]
[352250777,1739017833081,-835.64,0.00010121,2]
[352250779,1739017833092,-500.0,0.00010121,2]
[352250781,1739017833101,-500.0,0.00010121,2]
[352250783,1739017833110,-991.99,0.00010121,2]
[352250785,1739017833119,-1592.8,0.00010121,2]
[352250787,1739017833129,-866.62,0.00010121,2]
[352250789,1739017833138,-1076.28,0.00010121,2]
[352250791,1739017833147,-500.0,0.00010121,2]
[352250792,1739017833162,-500.0,0.00010121,2]
[352250794,1739017833173,-500.0,0.00010121,2]
[352250796,1739017833182,-1110.4,0.00010121,2]
[352250798,1739017833192,-797.46,0.00010121,2]
[352250800,1739017833201,-953.06,0.00010121,2]
[352250802,1739017833210,-1158.75,0.00010121,2]
[352250805,1739017833220,-1244.41,0.00010121,2]
[352250806,1739017833229,-700.49,0.00010121,2]
[352250808,1739017833238,-2416.03,0.00010121,2]
[352250810,1739017833247,-743.24,0.00010121,2]
[352250812,1739017833256,-2781.41,0.00010121,2]
[352250814,1739017833265,-537.26,0.00010121,2]
[352250816,1739017833274,-464.34684533,0.00010121,2]
[352250819,1739017833295,-651.10315467,0.00010121,2]
[352250821,1739017833304,-1196.26,0.00010121,2]
[352250823,1739017833313,-1020.84,0.00010121,2]
[352250825,1739017833323,-1479.28,0.00010121,2]
[352250827,1739017833332,-280.7940228,0.00010121,2]
[352250830,1739017833351,-275.48520045,0.00010121,2]